bitfinex/quotes_ETHUSD_20240907
["timestamp","ask_amount","ask_price","bid_price","bid_amount"]
[1725732363675,0.68596675,2285.6,2285.5,18.715571]
[1725732364564,0.45866458,2285.9,2285.5,18.715571]
[1725732364565,0.45866458,2285.9,2285.8,18.27629]
[1725732364760,1.14439747,2285.9,2285.8,18.27629]
[1725732365003,1.14439747,2285.9,2285.8,20.541439]
[1725732365305,0.45866458,2285.9,2285.8,24.916269]
[1725732367298,0.24735002,2285.9,2285.8,24.916269]
[1725732367611,7.43,2286.5,2286.4,8.74736]
[1725732367813,5.801822,2286.8,2286.6,4.37327]
[1725732368168,0.68562097,2286.7,2286.6,4.37327]
[1725732368362,3.68562097,2286.7,2286.5,8.7467]
[1725732368568,0.68562097,2286.6,2286.5,5.24798]
[1725732368795,0.68562097,2286.6,2286.1,4.37414]
[1725732368997,0.68562097,2286.6,2285.2,1.74678776]
[1725732368998,14.12591083,2286.5,2285.9,0.0874797]
[1725732369272,3.04289713,2286.6,2285.8,9.52654]
[1725732369273,0.68562097,2286.4,2285.8,9.52654]
[1725732369569,0.516422,2286.6,2286.0,8.74868]
[1725732369570,5.97102097,2286.3,2286.0,8.74868]
[1725732369789,3.68562097,2286.2,2286.0,4.37432]
[1725732369994,0.68562097,2286.1,2286.0,4.37432]
[1725732370217,0.68562097,2286.1,2286.0,5.24921]
[1725732370376,0.68562097,2286.1,2286.0,9.62366]
[1725732371018,0.68562097,2286.1,2286.0,5.24921]
[1725732371438,3.0,2286.2,2286.0,5.24921]
[1725732371722,3.0,2286.2,2286.1,8.74852]
[1725732371886,3.0,2286.2,2286.1,9.71960884]
[1725732371887,3.68575693,2286.2,2286.1,9.71960884]
[1725732372476,0.68575693,2286.2,2286.1,9.71960884]
[1725732373625,0.68575693,2286.2,2286.1,14.09386884]
[1725732373784,3.0,2286.8,2286.5,4.37349]
[1725732373984,0.68566972,2286.7,2286.6,4.3733]
[1725732374976,0.68564091,2286.7,2286.6,4.3733]
[1725732375188,0.68564091,2286.7,2286.6,5.247979]
[1725732375625,0.68564091,2286.7,2286.6,9.621279]
[1725732376883,0.68564091,2286.7,2286.6,5.247979]
[1725732377087,0.6856173,2286.7,2286.6,5.247979]
[1725732377518,0.6856173,2286.7,2286.6,9.621279]
[1725732378031,0.6856173,2286.7,2286.6,19.028579]
[1725732378228,7.43,2287.1,2287.0,4.37254]
[1725732378521,5.2294,2287.4,2287.1,4.37232]
[1725732378829,0.68551582,2287.3,2287.1,4.45973498]
[1725732378997,5.2294,2287.4,2287.3,4.37196]
[1725732379200,0.97497836,2287.5,2287.2,8.7442]
[1725732379528,0.68545848,2287.4,2287.3,4.37195]
[1725732380621,0.68545848,2287.4,2287.3,4.45938412]
[1725732380827,0.68545848,2287.4,2287.3,8.83134412]
[1725732381116,0.68545848,2287.4,2287.3,9.80280128]
[1725732381482,0.45855636,2287.5,2287.4,8.74354]
[1725732381722,1.14391716,2287.5,2287.4,8.74354]
[1725732381923,1.14390766,2287.5,2287.4,8.74354]
[1725732382098,0.45855636,2287.5,2287.4,18.14931]
[1725732382287,7.946422,2288.2,2287.7,4.37109]
[1725732382485,0.45830975,2287.9,2287.7,4.37116]
[1725732382826,0.45830975,2287.9,2287.4,4.37162]
[1725732382827,0.68528747,2287.8,2287.4,4.37162]
[1725732383002,0.68528747,2287.8,2287.2,4.37204]
[1725732383003,0.68528747,2287.7,2287.2,4.37204]
[1725732383183,0.68528747,2287.7,2287.1,5.9172275]
[1725732383387,0.68528747,2287.7,2287.4,4.37167]
[1725732383698,0.68528747,2287.6,2287.4,4.37167]
[1725732383887,3.0,2287.8,2287.4,4.37167]
[1725732384228,0.6853435,2287.7,2287.4,8.74335]
[1725732384389,6.82915975,2287.9,2287.5,9.40558]
[1725732384390,0.6853435,2287.6,2287.5,9.40558]
[1725732384729,0.45830975,2287.9,2287.7,4.37106]
[1725732385020,0.45830975,2287.9,2287.6,4.37135]
[1725732385021,0.45830975,2287.9,2287.8,4.37101]
[1725732385180,1.14358396,2287.9,2287.8,4.37101]
[1725732385386,0.45830975,2287.9,2287.8,4.37101]
[1725732386319,0.45830975,2287.9,2287.5,8.74289]
[1725732386620,0.68531418,2287.8,2287.5,8.74289]
[1725732386935,0.45830975,2287.9,2287.7,5.034]
[1725732387087,0.45830975,2287.9,2287.8,13.11303]
[1725732387436,5.723602,2288.6,2288.2,4.3702]
[1725732387437,7.88821675,2288.5,2288.2,4.3702]
[1725732387616,0.68516053,2288.4,2288.2,4.3702]
[1725732387789,0.45821675,2288.5,2288.2,4.3702]
[1725732388119,0.68515778,2288.4,2288.2,4.3702]
[1725732388318,0.45821675,2288.5,2288.2,4.3702]
[1725732388561,3.45821675,2288.5,2288.3,4.37005]
[1725732388837,0.45821675,2288.5,2288.3,4.37004]
[1725732390636,5.2294,2288.4,2287.7,4.37111]
[1725732390932,5.2294,2288.4,2287.6,0.874289]
[1725732390933,5.2294,2288.0,2287.6,4.37128]
[1725732391131,5.2294,2288.0,2287.7,4.37118]
[1725732391305,3.0,2287.9,2287.7,4.37118]
[1725732391715,3.0,2287.9,2287.6,4.37128]
[1725732392232,3.0,2287.9,2287.7,4.37104]
[1725732392388,3.0,2287.9,2287.8,4.37101]
[1725732392590,0.68532776,2287.9,2287.8,8.74202]
[1725732392823,3.0,2288.1,2287.8,4.37101]
[1725732393032,0.68532698,2288.0,2287.6,4.37126]
[1725732393231,5.91472698,2287.9,2287.6,4.37126]
[1725732393543,3.68532698,2287.8,2287.6,4.37124]
[1725732393854,3.0,2287.8,2287.7,4.3712]
[1725732393989,3.68536627,2287.8,2287.6,4.37124]
[1725732394189,3.0,2287.8,2287.7,4.3712]
[1725732394631,3.68534664,2287.8,2287.7,4.3712]
[1725732394796,3.68534664,2287.8,2287.6,8.74253]
[1725732395117,3.0,2287.8,2287.7,4.3712]
[1725732395320,3.0,2287.8,2287.7,9.616644]
[1725732395635,2.0,2288.2,2287.9,8.74156]
[1725732395636,5.0,2288.2,2287.9,8.74156]
[1725732395792,0.68529851,2288.1,2288.0,4.37048]
[1725732395993,0.68529851,2288.1,2287.9,4.37078]
[1725732395994,3.68529851,2288.1,2287.9,4.37078]
[1725732396217,0.68529851,2288.0,2287.9,8.7416]
[1725732397148,0.68529851,2288.0,2287.9,9.7031844]
[1725732398242,5.2294,2288.3,2287.9,9.7031844]
[1725732398243,5.2294,2288.3,2288.0,4.37049]
[1725732398446,3.68525374,2288.2,2288.0,4.37049]
[1725732398647,0.68525374,2288.1,2288.0,4.37049]
[1725732399755,0.68525718,2288.1,2288.0,4.37049]
[1725732399953,0.68525718,2288.1,2288.0,5.244617]
[1725732400542,0.68525718,2288.1,2288.0,4.37049]
[1725732400852,0.68523294,2288.1,2288.0,4.37049]
[1725732401270,0.68523294,2288.1,2288.0,8.74111]
[1725732401553,3.0,2288.4,2288.2,4.37017]
[1725732401758,0.68520084,2288.3,2288.0,4.37048]
[1725732402048,0.68520084,2288.2,2288.0,4.37048]
[1725732402258,3.0,2288.4,2288.1,4.37043]
[1725732402455,0.68524492,2288.3,2288.1,8.74077]
[1725732402616,0.68524492,2288.2,2288.1,4.37034]
[1725732402819,0.68524492,2288.2,2288.1,4.807374]
[1725732403020,0.68524492,2288.2,2288.1,9.177804]
[1725732403244,0.6852161,2288.2,2288.1,9.177804]
[1725732403556,0.6852161,2288.2,2288.1,8.74077]
[1725732406570,0.458245,2288.3,2287.7,0.874244]
[1725732406571,0.458245,2288.3,2288.2,4.37024]
[1725732406727,1.14345411,2288.3,2288.2,4.37024]
[1725732407566,6.44995411,2288.3,2288.0,4.37061]
[1725732407804,3.68520911,2288.2,2288.1,4.37043]
[1725732408473,3.68520911,2288.2,2288.0,8.74114]
[1725732408775,0.68520911,2288.1,2288.0,4.37053]
[1725732408978,0.68520911,2288.1,2287.8,4.37088]
[1725732408979,6.46650897,2288.1,2287.2,5.76352275]
[1725732409195,0.68520911,2288.0,2287.9,4.37082]
[1725732409348,0.68520911,2288.0,2287.9,8.74164]
[1725732409899,3.0,2288.2,2287.9,4.37072]
[1725732410190,0.6852789,2288.1,2288.0,8.74124]
[1725732412952,0.458245,2288.3,2288.1,4.37035]
[1725732413163,0.6852228,2288.2,2288.1,4.37035]
[1725732414960,0.6852228,2288.2,2287.7,4.37116]
[1725732414961,5.3065,2288.1,2287.7,4.37105]
[1725732415149,3.6852228,2288.0,2287.8,4.37101]
[1725732415355,0.6852228,2287.9,2287.8,4.37101]
[1725732415577,0.6852228,2287.9,2287.8,9.616226]
[1725732416098,3.0,2288.2,2288.0,4.37061]
[1725732416403,0.68528648,2288.1,2288.0,4.37053]
[1725732417884,0.68528648,2288.1,2287.8,5.245066]
[1725732418082,0.68528648,2288.0,2287.7,4.37108]
[1725732418255,0.68528648,2287.9,2287.8,4.37098]
[1725732419291,3.0,2288.2,2287.7,4.37108]
[1725732419292,7.37025,2288.2,2287.7,8.74219]
[1725732419461,0.68531902,2287.9,2287.7,8.74219]
[1725732419661,0.68531902,2287.8,2287.7,8.74219]
[1725732419986,0.68531902,2287.8,2287.7,9.616409]
[1725732421789,0.68531902,2287.8,2287.5,4.37141]
[1725732421971,3.0,2287.8,2287.5,8.74289]
[1725732422173,0.6853886,2287.7,2287.6,4.37139]
[1725732422772,0.6853886,2287.7,2287.6,8.74278]
[1725732422979,0.6853886,2287.7,2287.6,18.27497]
[1725732423324,0.6853886,2287.7,2287.6,20.539634]
[1725732424706,0.6853886,2287.7,2287.6,24.911024]
[1725732425813,0.6853886,2287.7,2287.6,20.539634]
[1725732428207,4.8110767,2288.4,2288.2,4.37011]
[1725732428504,0.68520076,2288.3,2288.2,4.37011]
[1725732430674,0.68520076,2288.3,2288.1,8.74073]
[1725732431000,0.68520076,2288.2,2288.1,8.74073]
[1725732431303,4.8110767,2288.4,2288.2,4.37022]
[1725732431603,0.68520858,2288.3,2288.2,4.37022]
[1725732433999,0.68520858,2288.3,2288.1,8.74066]
[1725732434223,0.68520858,2288.2,2288.1,4.37032]
[1725732434426,4.8110767,2288.4,2288.1,4.37032]
[1725732434729,0.68520927,2288.3,2288.1,4.37032]
[1725732434929,4.8110767,2288.4,2288.1,4.37032]
[1725732434930,0.68520927,2288.2,2288.1,4.37032]
[1725732435593,0.68520927,2288.2,2288.1,9.614844]
[1725732436138,0.68520927,2288.2,2288.1,8.74075]
[1725732436701,0.68520927,2288.2,2288.1,4.37032]
[1725732437726,4.8110767,2288.4,2288.1,4.37032]
[1725732437914,0.68519799,2288.3,2288.1,4.37032]
[1725732438095,0.68519799,2288.2,2288.1,4.37032]
[1725732438427,0.68519799,2288.2,2288.1,8.74075]
[1725732438628,0.68519799,2288.2,2288.1,9.614825]
[1725732441402,0.68519799,2288.2,2288.1,4.37032]
[1725732441917,5.4719,2288.1,2287.7,4.37105]
[1725732442122,5.4719,2288.1,2287.3,4.37178]
[1725732442123,6.1821667,2287.8,2287.3,4.37178]
[1725732442330,3.78129986,2287.4,2286.8,6.04389302]
[1725732442597,3.78129986,2287.4,2286.6,4.79363174]
[1725732442598,0.68519799,2287.3,2286.9,4.37259]
[1725732442833,0.68519799,2287.2,2287.1,4.37224]
[1725732443795,0.68519799,2287.2,2286.9,4.37254]
[1725732443994,0.68519799,2287.1,2287.0,4.37252]
[1725732445612,0.68519799,2287.2,2287.0,4.37252]
[1725732445938,0.68519799,2287.1,2287.0,4.37252]
[1725732446145,0.68551324,2287.1,2287.0,9.619566]
[1725732446436,3.0,2287.5,2287.1,4.37234]
[1725732446637,0.6854825,2287.4,2287.0,4.37252]
[1725732446841,5.4719,2287.2,2287.0,4.37241]
[1725732447032,3.6854825,2287.1,2287.0,8.74483]
[1725732447351,3.6854825,2287.1,2287.0,4.37241]
[1725732447506,3.0,2287.1,2287.0,4.37241]
[1725732447709,3.68551283,2287.1,2287.0,4.37241]
[1725732447903,0.68551283,2287.1,2287.0,4.37241]
[1725732451853,0.68551283,2287.1,2286.5,5.1653]
[1725732451854,5.3406,2287.0,2286.5,4.37333]
[1725732452056,3.78129986,2286.8,2286.5,4.37333]
[1725732452251,0.68551283,2286.7,2286.5,4.37333]
[1725732452556,5.3406,2286.6,2286.5,4.37333]
[1725732452752,6.02611283,2286.6,2286.5,4.37333]
[1725732452954,9.02611283,2286.6,2286.5,4.37333]
[1725732453321,8.3406,2286.6,2286.5,4.37333]
[1725732453655,3.0,2286.6,2286.5,4.37333]
[1725732453854,3.0,2286.7,2286.5,4.37333]
[1725732454218,3.0,2286.7,2286.1,4.37415]
[1725732454219,9.12189986,2286.6,2286.1,4.37415]
[1725732454455,9.12189986,2286.6,2286.3,8.74756]
[1725732454654,9.12189986,2286.6,2286.3,4.37378]
[1725732454655,3.0,2286.5,2286.3,4.37378]
[1725732455159,3.0,2286.5,2286.2,4.37404]
[1725732455363,3.0,2286.5,2286.1,4.37409]
[1725732455518,3.78129986,2286.2,2285.6,4.37508]
[1725732455723,3.78129986,2285.9,2285.5,4.37539]
[1725732456119,3.0,2285.8,2285.5,4.37539]
[1725732457161,3.0,2285.8,2285.4,4.37547]
[1725732457539,3.0,2285.8,2285.5,4.3754]
[1725732458042,3.0,2285.8,2285.4,8.75095]
[1725732458280,5.1807,2285.6,2285.0,4.37624]
[1725732458427,5.1807,2285.6,2284.8,4.37658]
[1725732458428,3.78129986,2285.3,2284.8,4.37658]
[1725732458631,3.78129986,2285.3,2285.0,4.37625]
[1725732459057,3.0,2285.2,2285.0,4.37625]
[1725732459361,3.0,2285.2,2285.0,4.37623]
[1725732459564,3.0,2285.4,2285.0,4.37623]
[1725732460568,9.64699399,2285.4,2284.8,8.75327]
[1725732460756,3.78129986,2285.3,2284.8,8.75328]
[1725732461066,3.78129986,2285.3,2284.9,4.3765]
[1725732461067,3.0,2285.2,2284.9,4.3765]
[1725732461981,3.0,2285.2,2284.8,8.75326]
[1725732462271,3.0,2285.2,2284.8,4.37663]
[1725732462633,8.1807,2285.2,2284.8,4.37663]
[1725732462834,3.78129986,2285.1,2284.6,4.37694]
[1725732463037,3.0,2285.0,2284.6,8.75396]
[1725732463543,3.0,2285.0,2284.7,4.37687]
[1725732463940,3.0,2285.0,2284.6,4.37694]
[1725732464155,10.14193599,2285.0,2284.4,4.37737]
[1725732464375,5.1807,2284.8,2284.4,4.37737]
[1725732464584,3.0,2284.7,2284.4,4.37737]
[1725732464750,3.0,2284.7,2284.3,4.3777]
[1725732464955,3.0,2284.7,2284.5,4.37729]
[1725732465565,3.0,2284.7,2284.5,8.75449]
[1725732465759,3.0,2284.7,2284.6,4.37713]
[1725732465950,3.0,2284.7,2284.5,4.3772]
[1725732467449,3.0,2284.7,2284.5,8.75441]
[1725732467645,3.0,2284.7,2284.6,4.37713]
[1725732467864,5.27127399,2285.0,2284.5,4.3772]
[1725732468073,9.64766399,2285.0,2284.5,4.3772]
[1725732469156,1.7330092,2284.9,2284.0,5.0739]
[1725732469358,14.89099906,2284.9,2284.3,4.37752]
[1725732469747,0.45839718,2284.8,2284.4,4.37748]
[1725732470187,0.45839718,2284.8,2284.4,4.37738]
[1725732470407,0.45839718,2284.8,2284.4,8.7548]
[1725732471251,0.45839718,2284.8,2284.4,4.37738]
[1725732471593,0.45839718,2284.8,2284.4,8.75478]
[1725732471764,0.45839718,2284.8,2284.5,4.3773]
[1725732473489,0.45839718,2284.8,2284.7,4.37694]
[1725732474991,0.45839718,2284.8,2284.6,4.37712]
[1725732475188,0.45839718,2284.8,2284.5,4.3772]
[1725732475189,3.45839718,2284.8,2284.5,4.3772]
[1725732475394,3.95259918,2284.8,2284.5,4.3772]
[1725732475620,3.45839718,2284.8,2284.4,4.37734]
[1725732475821,3.45839718,2284.8,2284.5,4.37731]
[1725732477219,3.45839718,2284.8,2284.5,8.75452]
[1725732477427,3.45839718,2284.8,2284.5,4.37721]
[1725732477622,3.45839718,2284.8,2284.5,4.27721]
[1725732478208,3.45839718,2284.8,2284.6,4.37703]
[1725732478403,0.45839718,2284.8,2284.6,4.37703]
[1725732478612,0.45839718,2284.8,2284.7,8.75388]
[1725732479142,0.45839718,2284.8,2284.7,9.629268]
[1725732480213,0.45839718,2284.8,2284.5,4.3772]
[1725732480413,3.78129986,2284.7,2284.5,4.3772]
[1725732480627,3.0,2284.6,2284.5,4.3772]
[1725732481615,3.68627477,2284.6,2284.5,4.3772]
[1725732482349,3.68626917,2284.6,2284.5,4.3772]
[1725732482507,3.68626917,2284.6,2284.5,8.75452]
[1725732483128,3.0,2284.6,2284.5,4.3772]
[1725732483323,3.68626468,2284.6,2284.4,4.3775]
[1725732483523,4.46756454,2284.5,2284.4,4.3775]
[1725732483745,7.46756454,2284.5,2284.3,4.37755]
[1725732483947,0.68626468,2284.4,2284.3,4.37755]
[1725732484152,3.68626468,2284.4,2284.3,4.37755]
[1725732484662,3.68626468,2284.4,2284.3,8.75525]
[1725732485258,4.14460238,2284.4,2284.3,8.75525]
[1725732486567,4.14466587,2284.4,2284.3,4.37755]
[1725732488969,1.14466587,2284.4,2284.3,4.37755]
[1725732489165,4.14466587,2284.4,2284.3,4.37755]
[1725732489368,4.93726244,2284.4,2284.0,4.37812]
[1725732489528,3.78129986,2284.2,2284.0,4.37812]
[1725732489723,3.78129986,2284.2,2283.8,4.37853]
[1725732490031,3.78129986,2284.2,2283.6,4.37892]
[1725732490032,9.15859986,2283.9,2283.6,4.37892]
[1725732490226,3.78129986,2283.7,2283.6,4.37892]
[1725732490450,7.46771699,2283.7,2283.6,4.37892]
[1725732490926,7.46771699,2283.7,2283.6,8.75797]
[1725732492126,3.68641713,2283.7,2283.6,8.75797]
[1725732492327,0.68641713,2283.7,2283.6,10.071705]
[1725732492529,0.68641713,2283.7,2283.6,19.642655]
[1725732493231,3.78129986,2284.3,2283.7,4.37876]
[1725732493399,3.78129986,2284.3,2284.2,4.3779]
[1725732493599,4.4676867,2284.3,2284.1,4.37807]
[1725732493922,0.68638684,2284.2,2284.0,4.37816]
[1725732494132,4.4676867,2284.1,2284.0,4.37816]
[1725732494492,7.4676867,2284.1,2283.9,4.37838]
[1725732494689,3.68638684,2284.0,2283.9,4.37838]
[1725732495805,8.71308684,2284.0,2283.8,4.37855]
[1725732495998,4.4676867,2283.9,2283.8,4.37855]
[1725732496200,4.4676867,2283.9,2283.7,4.37879]
[1725732496441,3.68638684,2283.8,2283.7,4.37879]
[1725732496955,3.68650422,2283.8,2283.7,8.75764]
[1725732497300,0.68650422,2283.8,2283.7,8.75764]
[1725732498934,0.68650422,2283.8,2283.7,18.41779]
[1725732500368,1.14487898,2283.8,2283.7,18.41779]
[1725732501367,1.14487898,2283.8,2283.7,20.259569]
[1725732502350,0.45837476,2283.8,2283.7,20.259569]
[1725732503125,1.14477725,2283.8,2283.7,20.259569]
[1725732503324,1.14477725,2283.8,2283.7,13.13649]
[1725732503765,0.45837476,2283.8,2283.7,13.13649]
[1725732503964,1.14478989,2283.8,2283.7,13.13649]
[1725732504376,0.45837476,2283.8,2283.7,13.13649]
[1725732504660,1.14478741,2283.8,2283.7,13.13649]
[1725732505258,1.14478741,2283.8,2283.7,8.75764]
[1725732505461,4.93739614,2283.8,2283.7,4.37879]
[1725732506330,4.14478741,2283.8,2283.7,4.37879]
[1725732506823,4.14478741,2283.8,2283.7,8.84521423]
[1725732507026,1.14478741,2283.8,2283.7,8.84521423]
[1725732507530,1.14478741,2283.8,2283.7,13.22406423]
[1725732508429,1.14478741,2283.8,2283.7,13.13649]
[1725732509074,1.14478741,2283.8,2283.7,8.75764]
[1725732510279,1.14485604,2283.8,2283.7,8.75764]
[1725732511550,1.14485604,2283.8,2283.7,10.071326]
[1725732513286,1.14485604,2283.8,2283.7,8.75764]
[1725732513946,4.9261559,2283.8,2283.7,4.37879]
[1725732514136,7.9261559,2283.8,2283.7,4.37879]
[1725732516842,7.23967462,2283.8,2283.7,4.37879]
[1725732517091,7.9261755,2283.8,2283.7,4.37879]
[1725732519470,7.23967462,2283.8,2283.7,4.37879]
[1725732519874,7.23967462,2283.8,2283.7,8.75764]
[1725732520043,3.45837476,2283.8,2283.7,8.75764]
[1725732520244,0.45837476,2283.8,2283.7,8.75764]
[1725732522857,0.40837476,2283.8,2283.7,10.071306]
[1725732523059,7.43,2284.4,2284.3,8.7554]
[1725732523259,6.85111694,2284.8,2284.7,4.37694]
[1725732523448,6.61691735,2284.8,2284.7,4.37694]
[1725732523645,7.07526295,2284.8,2284.7,4.37694]
[1725732524358,7.07526295,2284.8,2284.4,4.37739]
[1725732524560,1.57171735,2284.5,2284.4,4.37751]
[1725732525258,1.57171735,2284.5,2284.4,8.75502]
[1725732526064,6.76997873,2284.7,2284.6,4.37713]
[1725732526563,6.76997873,2284.7,2284.6,8.75426]
[1725732526773,0.4583456,2284.8,2284.7,8.75388]
[1725732526988,0.4583456,2284.8,2284.7,10.066981]
[1725732527145,8.81517873,2285.1,2285.0,4.37636]
[1725732527343,8.76517873,2285.1,2285.0,4.37636]
[1725732528059,11.76517873,2285.1,2284.7,4.37688]
[1725732528381,11.76517873,2285.1,2284.5,4.37719]
[1725732528382,6.85111694,2284.8,2284.5,4.37719]
[1725732528612,3.76997873,2284.6,2284.5,4.37719]
[1725732528949,6.76997873,2284.6,2284.3,8.75511]
[1725732529149,6.76997873,2284.6,2284.4,4.37747]
[1725732529359,3.0,2284.5,2284.4,4.37747]
[1725732531352,3.0,2284.5,2284.4,8.75498]
[1725732531552,3.0,2284.7,2284.6,4.37705]
[1725732531808,3.0,2284.7,2284.6,8.75418]
[1725732532088,3.76997873,2284.8,2284.7,4.37678]
[1725732532293,6.76997873,2284.8,2284.7,4.37678]
[1725732532498,6.76997873,2284.8,2284.7,8.75372]
[1725732533158,6.76997873,2284.8,2284.7,4.37678]
[1725732535745,3.0,2284.8,2284.7,8.75372]
[1725732535863,3.0,2284.9,2284.8,4.3767]
[1725732536188,3.76997873,2284.9,2284.8,4.3767]
[1725732536396,6.76997873,2284.9,2284.8,4.3767]
[1725732537362,6.76997873,2284.9,2284.8,8.75345]
[1725732538190,3.0,2284.9,2284.8,8.75345]
[1725732538393,3.76997873,2285.1,2284.8,8.75345]
[1725732538394,3.0,2285.0,2284.9,4.37638]
[1725732538595,3.0,2285.0,2284.9,8.75293]
[1725732540495,3.0,2285.0,2284.9,4.37638]
[1725732541002,12.0362574,2285.5,2285.1,4.37615]
[1725732541003,2.32905874,2285.5,2285.1,4.37615]
[1725732541167,2.72150832,2285.8,2285.5,4.37541]
[1725732541168,3.76997873,2285.8,2285.5,4.37541]
[1725732541371,3.76997873,2285.8,2285.7,4.37502]
[1725732541858,4.26418073,2285.8,2285.7,4.37502]
[1725732543696,7.26418073,2285.8,2285.7,4.37502]
[1725732544458,7.26418073,2285.8,2285.6,8.75024]
[1725732544659,3.0,2285.7,2285.6,8.75024]
[1725732545361,3.0,2285.7,2285.6,4.37512]
[1725732545362,3.45833803,2285.7,2285.6,4.37512]
[1725732546300,3.45833803,2285.7,2285.5,4.3753]
[1725732546460,3.45833803,2285.7,2285.5,8.75059]
[1725732546796,3.45833803,2285.7,2285.6,4.37521]
[1725732548376,3.45833803,2285.7,2285.6,9.62547]
[1725732548814,3.0,2285.7,2285.6,9.62547]
[1725732549119,7.0913,2286.2,2285.6,9.62547]
[1725732549120,8.86127873,2286.2,2286.0,4.37445]
[1725732549418,0.45834173,2286.4,2285.8,5.3855]
[1725732549618,3.76997873,2286.6,2286.4,4.37368]
[1725732549922,3.76997873,2286.6,2286.4,8.74726]
[1725732550237,3.76997873,2286.6,2286.4,4.37358]
[1725732550238,4.26418073,2286.6,2286.4,4.37358]
[1725732550534,4.37435,2286.1,2285.6,4.37512]
[1725732550735,3.76997873,2285.8,2285.6,4.37506]
[1725732550964,8.86127873,2285.8,2285.5,4.37536]
[1725732551170,3.0,2285.7,2285.6,4.37521]
[1725732552631,3.0,2285.7,2285.6,9.62548]
[1725732552831,3.0,2286.1,2286.0,4.3744]
[1725732553387,3.76997873,2286.2,2286.1,4.37426]
[1725732553526,8.86127873,2286.4,2286.2,4.37393]
[1725732553924,3.76997873,2286.4,2286.3,4.37387]
[1725732554170,6.9055268,2286.6,2286.3,4.37387]
[1725732554551,3.76997873,2286.4,2286.2,4.37396]
[1725732554864,3.76997873,2286.4,2286.3,4.37387]
[1725732555766,6.76997873,2286.4,2286.3,4.37387]
[1725732556626,6.76997873,2286.4,2286.2,4.37396]
[1725732556823,3.0,2286.3,2286.2,4.37396]
[1725732558633,3.0,2286.3,2286.2,8.74803]
[1725732558830,3.0,2286.3,2286.2,9.622833]
[1725732559061,3.0,2286.6,2286.3,4.37379]
[1725732559431,3.0,2286.6,2286.3,4.37376]
[1725732559855,3.76997873,2286.5,2286.1,4.37407]
[1725732560076,3.76997873,2286.3,2285.9,4.37449]
[1725732560373,3.0,2286.2,2286.0,4.37444]
[1725732560577,3.0,2286.2,2286.1,4.37426]
[1725732560773,3.0,2286.2,2286.0,4.37444]
[1725732561071,3.0,2286.2,2286.0,4.37436]
[1725732561432,3.0,2286.2,2286.1,4.37426]
[1725732566128,3.0,2286.3,2286.2,4.374]
[1725732566336,3.4582484,2286.4,2286.2,4.374]
[1725732568124,3.4582484,2286.4,2286.3,4.37387]
[1725732568491,3.4582484,2286.4,2286.2,4.37406]
[1725732568792,3.4582484,2286.4,2286.3,4.37387]
[1725732572503,3.4582484,2286.4,2286.1,4.37418]
[1725732572701,8.81997873,2286.3,2286.1,4.37418]
[1725732572942,3.0,2286.2,2286.1,4.37418]
[1725732576045,4.56867411,2286.2,2286.1,4.37418]
[1725732576251,1.56867411,2286.2,2286.1,4.37418]
[1725732578822,5.02692251,2286.4,2286.3,4.37387]
[1725732579953,2.02692251,2286.4,2286.3,4.37387]
[1725732580130,5.02692251,2286.4,2286.3,4.37387]
[1725732580518,3.4582484,2286.4,2286.3,8.74774]
[1725732580724,5.02692251,2286.4,2286.3,4.37387]
[1725732581257,5.02692251,2286.4,2286.2,4.37404]
[1725732581617,3.0,2286.3,2286.2,4.37404]
[1725732581919,2.02692251,2286.4,2286.3,4.37387]
[1725732582862,0.4582484,2286.4,2286.3,4.37387]
[1725732583019,0.4582484,2286.4,2286.3,5.248661]
[1725732583672,0.4582484,2286.4,2286.3,4.37387]
[1725732583959,2.52112451,2286.4,2286.2,4.37406]
[1725732584159,1.80591694,2286.7,2286.3,4.46134626]
[1725732584342,1.56867411,2286.8,2286.6,4.37319]
[1725732584889,1.56867411,2286.8,2286.6,8.74639]
[1725732585093,1.56867411,2286.8,2286.6,4.37319]
[1725732585405,0.45836418,2286.9,2286.8,4.37292]
[1725732585698,2.02703829,2286.9,2286.8,4.37292]
[1725732585851,5.02703829,2286.9,2286.8,4.37292]
[1725732586795,2.02703829,2286.9,2286.8,4.37292]
[1725732587156,2.02703829,2286.9,2286.6,8.74632]
[1725732587497,1.56867411,2286.7,2286.6,4.37311]
[1725732587703,1.56867411,2286.7,2286.5,4.37345]
[1725732587852,1.56867411,2286.7,2286.6,4.3733]
[1725732588478,5.02703829,2286.9,2286.7,4.37307]
[1725732589870,4.56867411,2286.9,2286.7,4.37307]
[1725732591193,4.56867411,2286.9,2286.6,8.74648]
[1725732591390,4.56867411,2286.9,2286.6,4.37318]
[1725732591391,1.56867411,2286.7,2286.6,4.37318]
[1725732592497,1.56867411,2286.7,2286.5,4.37348]
[1725732592694,1.56867411,2286.7,2286.5,8.74696]
[1725732593288,1.56867411,2286.7,2286.5,4.37348]
[1725732593791,4.56867411,2286.7,2286.5,8.74688]
[1725732593991,4.56867411,2286.7,2286.5,4.3734]
[1725732594192,1.56867411,2286.7,2286.5,8.7468]
[1725732594393,1.56867411,2286.7,2286.5,4.3734]
[1725732595493,3.0,2286.8,2286.6,4.3733]
[1725732595700,4.56867411,2286.9,2286.7,4.37302]
[1725732596039,4.56867411,2286.9,2286.6,4.3733]
[1725732596202,6.37459105,2286.9,2286.6,8.7466]
[1725732597102,6.37459105,2286.9,2286.7,4.37308]
[1725732597314,6.37459105,2286.9,2286.7,4.37292]
[1725732597475,6.37459105,2286.9,2286.8,4.37292]
[1725732599818,6.83297947,2286.9,2286.8,4.22292]
[1725732600019,0.45838842,2286.9,2286.8,8.59584]
[1725732600917,2.02706253,2286.9,2286.6,4.37315]
[1725732601091,1.56867411,2286.7,2286.6,8.74645]
[1725732601531,3.0,2286.8,2286.7,4.37311]
[1725732601704,5.02706253,2286.9,2286.7,4.37311]
[1725732602110,5.02706253,2286.9,2286.8,4.37292]
[1725732602329,3.45838842,2286.9,2286.8,4.37292]